[Event "GER-ch Youth U10 2020"]
[Site "Willingen"]
[Date "2020.10.30"]
[Round "5.15"]
[White "Herrmann, Arthur"]
[Black "Zimmer, Tim"]
[Result "1-0"]
[ECO "C88"]
[WhiteElo "1151"]
[BlackElo "1025"]
[Annotator "NA RC"]
[PlyCount "69"]
[EventDate "2020.10.27"]
[EventType "swiss"]
[EventRounds "7"]
[EventCountry "GER"]
[SourceTitle "playchess.com"]
[Source "ChessBase"]
[SourceQuality "1"]
[TimeControl "40/4500+30:900+30"]

1. e4 {[%emt 0:00:00]} e5 {[%emt 0:00:00]} 2. Nf3 {[%emt 0:00:00]} Nc6 {[%emt 0:00:03]} 3. Bb5 {[%emt 0:00:00]} a6 {[%emt 0:00:31]} 4. Ba4 {[%emt 0:00:00]} Nf6 {[%emt 0:00:32]} 5. O-O {[%emt 0:00:11]} Be7 {[%emt 0:00:15]} 6. Re1 {[%emt 0:00:10]} b5 {[%emt 0:00:28]} 7. Bb3 {[%emt 0:00:08]} d6 {[%emt 0:00:44]} 8. h3 {[%emt 0:00:20]} Na5 {[%emt 0:00:22]} 9. c3 {[%emt 0:03:06]} Nxb3 {[%emt 0:02:35]} 10. Qxb3 {[%emt 0:01:42]} c5 {[%emt 0:00:51]} 11. d4 {[%emt 0:02:11]} Qc7 {[%emt 0:01:11]} 12. Bg5 {[%emt 0:02:01]} O-O {[%emt 0:04:00]} 13. Nbd2 {[%emt 0:02:34]} Bd7 {[%emt 0:04:05]} 14. Rac1 {[%emt 0:04:06]} c4 {[%emt 0:02:37]} 15. Qc2 {[%emt 0:03:41]} Rfe8 {[%emt 0:17:04]} 16. dxe5 {[%emt 0:14:03]} dxe5 {[%emt 0:01:20]} 17. Rcd1 {[%emt 0:03:17]} Nh5 {[%emt 0:11:53]} 18. Be3 {[%emt 0:04:02]} g6 {[%emt 0:03:53]} 19. Nf1 {[%emt 0:08:30]} f5 {[%emt 0:01:05]} 20. exf5 {[%emt 0:03:44]} Bxf5 {[%emt 0:00:25]} 21. Qc1 {[%emt 0:00:54]} Bd3 22. Bg5 {[%emt 0:05:02]} Bd6 {[%emt 0:03:36]} 23. Ne3 e4 {[%emt 0:05:24]} 24. Nd4 {[%emt 0:01:44]} Bf4 {[%emt 0:00:49]} 25. Bxf4 {[%emt 0:02:14]} Qxf4 {[%emt 0:00:44]} 26. Nd5 {[%emt 0:01:56]} Qf7 {[%emt 0:02:39]} 27. Ne3 {[%emt 0:01:23]} Rf8 {[%emt 0:01:52]} 28. Ng4 {[%emt 0:01:56]} Qf4 {[%emt 0:03:02]} 29. Qxf4 {[%emt 0:03:40]} Rxf4 {[%emt 0:01:44]} 30. Ne6 {[%emt 0:00:43]} Ra7 {[%emt 0:00:30]} 31. Nxf4 {[%emt 0:01:14]} Nxf4 {[%emt 0:00:05]} 32. Nf6+ {[%emt 0:00:41]} Kg7 {[%emt 0:01:01]} 33. Nxe4 {[%emt 0:00:32]} Ne2+ {[%emt 0:00:31]} 34. Kh2 {[%emt 0:00:28]} Rf7 {[%emt 0:00:37]} 35. f3 {[%emt 0:01:09]} 1-0

[Event "GER-ch Youth U10 2020"]
[Site "Willingen"]
[Date "2020.10.30"]
[Round "5.16"]
[White "Pimenov, Danil"]
[Black "Sewerinow, Alexander"]
[Result "1-0"]
[ECO "B35"]
[WhiteElo "1235"]
[BlackElo "1202"]
[Annotator "NA RC"]
[PlyCount "60"]
[EventDate "2020.10.27"]
[EventType "swiss"]
[EventRounds "7"]
[EventCountry "GER"]
[SourceTitle "playchess.com"]
[Source "ChessBase"]
[SourceQuality "1"]
[TimeControl "40/4500+30:900+30"]

1. e4 {[%emt 0:00:00]} c5 {[%emt 0:00:00]} 2. Nf3 {[%emt 0:00:00]} Nc6 {[%emt 0:00:00]} 3. d4 {[%emt 0:00:00]} cxd4 {[%emt 0:00:00]} 4. Nxd4 {[%emt 0:00:00]} g6 {[%emt 0:00:00]} 5. Be3 {[%emt 0:00:07]} Bg7 {[%emt 0:00:02]} 6. Nc3 {[%emt 0:00:11]} Nf6 {[%emt 0:00:05]} 7. Bc4 {[%emt 0:00:15]} O-O {[%emt 0:00:09]} 8. f3 {[%emt 0:00:13]} Qb6 {[%emt 0:01:26]} 9. Bb3 {[%emt 0:03:49]} Nxe4 {[%emt 0:05:19]} 10. Nd5 {[%emt 0:01:17]} Qa5+ {[%emt 0:05:16]} 11. c3 {[%emt 0:01:02]} e6 {[%emt 0:04:21]} 12. Nxc6 {[%emt 0:00:42]} bxc6 {[%emt 0:02:49]} 13. fxe4 {[%emt 0:01:21]} cxd5 {[%emt 0:00:29]} 14. exd5 {[%emt 0:00:20]} Bb7 {[%emt 0:02:57]} 15. dxe6 {[%emt 0:02:48]} dxe6 {[%emt 0:01:04]} 16. O-O {[%emt 0:01:35]} Rfd8 {[%emt 0:00:37]} 17. Qe2 {[%emt 0:01:02]} Rac8 {[%emt 0:00:46]} 18. Qf2 {[%emt 0:00:22]} Rf8 {[%emt 0:03:03]} 19. Bxa7 {[%emt 0:02:57]} Rc7 {[%emt 0:01:04]} 20. Bb6 {[%emt 0:00:18]} Qe5 {[%emt 0:00:44]} 21. Bxc7 {[%emt 0:00:35]} Qxc7 {[%emt 0:00:08]} 22. Rad1 {[%emt 0:00:41]} Ba6 {[%emt 0:02:22]} 23. Rfe1 {[%emt 0:00:32]} Be5 {[%emt 0:00:34]} 24. Qh4 {[%emt 0:02:26]} Bd6 {[%emt 0:01:58]} 25. Kh1 {[%emt 0:03:38]} Bb7 {[%emt 0:00:56]} 26. Rd3 {[%emt 0:02:41]} Be7 {[%emt 0:01:45]} 27. Qh6 {[%emt 0:01:46]} Rd8 {[%emt 0:04:09]} 28. Rh3 {[%emt 0:00:50]} Bf6 {[%emt 0:01:15]} 29. Qxh7+ {[%emt 0:00:32]} Kf8 {[%emt 0:01:09]} 30. Rxe6 {[%emt 0:01:52]} fxe6 {[%emt 0:01:33]} 1-0

[Event "GER-ch Youth U10 2020"]
[Site "Willingen"]
[Date "2020.10.30"]
[Round "5.17"]
[White "Radeke, Timothy"]
[Black "Krstovic, Marko"]
[Result "0-1"]
[ECO "E11"]
[WhiteElo "1143"]
[BlackElo "1443"]
[Annotator "NA RC"]
[PlyCount "53"]
[EventDate "2020.10.27"]
[EventType "swiss"]
[EventRounds "7"]
[EventCountry "GER"]
[SourceTitle "playchess.com"]
[Source "ChessBase"]
[SourceQuality "1"]
[TimeControl "40/4500+30:900+30"]

1. d4 {[%emt 0:00:00]} Nf6 {[%emt 0:00:00]} 2. c4 {[%emt 0:00:00]} e6 {[%emt 0:00:00]} 3. Nf3 {[%emt 0:00:00]} Bb4+ {[%emt 0:00:00]} 4. Nbd2 {[%emt 0:00:00]} b6 {[%emt 0:00:00]} 5. a3 {[%emt 0:00:05]} Be7 {[%emt 0:00:00]} 6. e4 {[%emt 0:00:19]} Bb7 {[%emt 0:00:36]} 7. Qc2 {[%emt 0:00:40]} c5 {[%emt 0:00:08]} 8. Bd3 {[%emt 0:03:08]} cxd4 {[%emt 0:00:45]} 9. Nxd4 {[%emt 0:01:28]} e5 {[%emt 0:00:16]} 10. Nf5 {[%emt 0:02:38]} O-O {[%emt 0:01:10]} 11. O-O {[%emt 0:01:32]} Nc6 {[%emt 0:00:21]} 12. Nf3 {[%emt 0:01:52]} d6 {[%emt 0:00:18]} 13. b4 {[%emt 0:02:31]} Rc8 {[%emt 0:02:29]} 14. Bg5 {[%emt 0:02:38]} h6 {[%emt 0:03:08]} 15. Be3 {[%emt 0:01:29]} Nb8 {[%emt 0:06:43]} 16. Rad1 {[%emt 0:04:16]} Nbd7 {[%emt 0:02:15]} 17. Rfe1 {[%emt 0:01:34]} b5 {[%emt 0:01:14]} 18. Nxe7+ {[%emt 0:02:55]} Qxe7 {[%emt 0:00:11]} 19. c5 {[%emt 0:00:35]} dxc5 {[%emt 0:00:40]} 20. Bxc5 {[%emt 0:02:33]} Nxc5 {[%emt 0:00:13]} 21. bxc5 {[%emt 0:00:10]} Qxc5 {[%emt 0:00:50]} 22. Qb2 {[%emt 0:02:25]} Rfe8 {[%emt 0:01:00]} 23. Bxb5 {[%emt 0:01:30]} Bc6 {[%emt 0:04:29]} 24. Rc1 {[%emt 0:02:58]} Qxb5 {[%emt 0:00:48]} 25. Qa1 {[%emt 0:03:03]} Bxe4 {[%emt 0:03:16]} 26. Nxe5 {[%emt 0:01:53]} Rxc1 {[%emt 0:00:29]} 27. Nf3 0-1

[Event "GER-ch Youth U10 2020"]
[Site "Willingen"]
[Date "2020.10.30"]
[Round "5.18"]
[White "Ahlers, Quentin"]
[Black "Theviot, Luca"]
[Result "1/2-1/2"]
[ECO "B20"]
[WhiteElo "1425"]
[BlackElo "1423"]
[Annotator "NA RC"]
[PlyCount "65"]
[EventDate "2020.10.27"]
[EventType "swiss"]
[EventRounds "7"]
[EventCountry "GER"]
[SourceTitle "playchess.com"]
[Source "ChessBase"]
[SourceQuality "1"]
[TimeControl "40/4500+30:900+30"]

1. e4 {[%emt 0:00:00]} c5 {[%emt 0:00:00]} 2. Bc4 {[%emt 0:00:00]} e6 3. Nc3 Nc6 {[%emt 0:00:36]} 4. Nf3 {[%emt 0:00:26]} a6 {[%emt 0:00:08]} 5. a3 {[%emt 0:00:12]} b5 {[%emt 0:00:08]} 6. Ba2 {[%emt 0:00:17]} Qc7 {[%emt 0:00:12]} 7. O-O {[%emt 0:00:38]} Bb7 {[%emt 0:00:49]} 8. d3 {[%emt 0:00:34]} Nf6 {[%emt 0:03:45]} 9. Re1 {[%emt 0:00:29]} Bd6 {[%emt 0:01:49]} 10. d4 {[%emt 0:02:54]} cxd4 {[%emt 0:00:15]} 11. Nxd4 {[%emt 0:00:12]} Bxh2+ {[%emt 0:00:20]} 12. Kf1 {[%emt 0:01:38]} Bd6 {[%emt 0:01:48]} 13. Nxc6 {[%emt 0:01:23]} Qxc6 {[%emt 0:02:07]} 14. Nd5 {[%emt 0:04:57]} Be7 {[%emt 0:04:43]} 15. Nxe7 {[%emt 0:02:53]} Kxe7 {[%emt 0:00:12]} 16. Bg5 {[%emt 0:00:55]} h6 {[%emt 0:05:18]} 17. Bd5 {[%emt 0:01:16]} Qc7 {[%emt 0:00:21]} 18. Bxf6+ {[%emt 0:02:39]} gxf6 {[%emt 0:02:08]} 19. Bxb7 {[%emt 0:00:54]} Qxb7 {[%emt 0:00:09]} 20. Re3 {[%emt 0:02:11]} Rhg8 {[%emt 0:03:49]} 21. Qd2 {[%emt 0:02:51]} Rac8 {[%emt 0:06:44]} 22. Rd1 {[%emt 0:01:30]} Rc6 {[%emt 0:03:20]} 23. Rd3 {[%emt 0:00:56]} Rd8 {[%emt 0:03:33]} 24. c3 {[%emt 0:03:58]} Rc5 {[%emt 0:08:05]} 25. f3 {[%emt 0:02:22]} Rh5 {[%emt 0:04:39]} 26. Qf2 {[%emt 0:01:29]} Qc6 {[%emt 0:03:58]} 27. Qe3 {[%emt 0:03:07]} Rg5 {[%emt 0:02:01]} 28. f4 {[%emt 0:01:33]} Rg4 {[%emt 0:01:16]} 29. Qf3 {[%emt 0:01:21]} h5 {[%emt 0:01:58]} 30. Qf2 {[%emt 0:05:41]} d6 {[%emt 0:07:48]} 31. e5 {[%emt 0:04:57]} fxe5 {[%emt 0:03:16]} 32. fxe5 {[%emt 0:00:22]} d5 {[%emt 0:01:03]} 33. Qf6+ {[%emt 0:02:26]} 1/2-1/2

[Event "GER-ch Youth U10 2020"]
[Site "Willingen"]
[Date "2020.10.30"]
[Round "5.19"]
[White "Meng, Yuxuan"]
[Black "Hellenbroich, Hanno"]
[Result "1-0"]
[ECO "B76"]
[WhiteElo "1515"]
[BlackElo "1291"]
[Annotator "NA RC"]
[PlyCount "59"]
[EventDate "2020.10.27"]
[EventType "swiss"]
[EventRounds "7"]
[EventCountry "GER"]
[SourceTitle "playchess.com"]
[Source "ChessBase"]
[SourceQuality "1"]
[TimeControl "40/4500+30:900+30"]

1. e4 {[%emt 0:00:00]} c5 {[%emt 0:00:00]} 2. Nf3 {[%emt 0:00:00]} d6 {[%emt 0:00:16]} 3. d4 {[%emt 0:00:00]} cxd4 {[%emt 0:00:23]} 4. Nxd4 {[%emt 0:00:00]} g6 {[%emt 0:00:18]} 5. Nc3 {[%emt 0:00:06]} Nf6 {[%emt 0:00:26]} 6. Be3 {[%emt 0:00:06]} Bg7 {[%emt 0:00:28]} 7. f3 {[%emt 0:00:08]} O-O {[%emt 0:00:18]} 8. Qd2 {[%emt 0:00:05]} Nc6 {[%emt 0:00:10]} 9. O-O-O {[%emt 0:00:06]} Be6 {[%emt 0:00:09]} 10. Kb1 {[%emt 0:00:25]} Qc8 {[%emt 0:00:30]} 11. Bh6 {[%emt 0:02:39]} a6 {[%emt 0:03:44]} 12. Bxg7 {[%emt 0:01:39]} Kxg7 {[%emt 0:00:05]} 13. g4 {[%emt 0:00:47]} b5 {[%emt 0:02:19]} 14. h4 {[%emt 0:01:24]} b4 {[%emt 0:02:24]} 15. Nce2 {[%emt 0:01:21]} a5 {[%emt 0:00:51]} 16. h5 {[%emt 0:01:25]} Ne5 {[%emt 0:10:54]} 17. hxg6 {[%emt 0:00:45]} fxg6 {[%emt 0:00:12]} 18. Qh6+ {[%emt 0:00:50]} Kh8 {[%emt 0:00:15]} 19. g5 {[%emt 0:00:30]} Nh5 {[%emt 0:01:16]} 20. Rxh5 {[%emt 0:00:14]} gxh5 {[%emt 0:00:10]} 21. Qxe6 {[%emt 0:00:31]} Qxe6 {[%emt 0:00:39]} 22. Nxe6 {[%emt 0:00:06]} Rxf3 {[%emt 0:00:15]} 23. N2d4 {[%emt 0:00:36]} Rg3 24. Nf5 {[%emt 0:03:39]} Rg1 {[%emt 0:03:41]} 25. Kc1 {[%emt 0:09:27]} Nf3 {[%emt 0:00:36]} 26. Be2 {[%emt 0:02:22]} Rxd1+ {[%emt 0:06:10]} 27. Kxd1 {[%emt 0:01:21]} Ne5 {[%emt 0:00:09]} 28. Bxh5 {[%emt 0:01:19]} Ng6 {[%emt 0:01:13]} 29. Bxg6 {[%emt 0:02:01]} hxg6 {[%emt 0:00:35]} 30. Nxe7 {[%emt 0:00:51]} 1-0

[Event "GER-ch Youth U10 2020"]
[Site "Willingen"]
[Date "2020.10.30"]
[Round "5.20"]
[White "Huang, Luca Hanson"]
[Black "Nemitz, Alfred"]
[Result "0-1"]
[ECO "D02"]
[WhiteElo "1570"]
[BlackElo "1287"]
[Annotator "NA RC"]
[PlyCount "84"]
[EventDate "2020.10.27"]
[EventType "swiss"]
[EventRounds "7"]
[EventCountry "GER"]
[SourceTitle "playchess.com"]
[Source "ChessBase"]
[SourceQuality "1"]
[TimeControl "40/4500+30:900+30"]

1. d4 {[%emt 0:00:00]} Nf6 {[%emt 0:00:00]} 2. Nf3 {[%emt 0:00:00]} d5 {[%emt 0:00:05]} 3. Bf4 {[%emt 0:00:12]} Bf5 {[%emt 0:08:10]} 4. e3 {[%emt 0:01:17]} e6 {[%emt 0:01:45]} 5. Nbd2 {[%emt 0:04:16]} Bd6 {[%emt 0:02:18]} 6. Bg3 {[%emt 0:02:06]} O-O {[%emt 0:02:06]} 7. Nh4 {[%emt 0:05:20]} Bg6 {[%emt 0:03:37]} 8. Nxg6 {[%emt 0:00:54]} hxg6 {[%emt 0:00:07]} 9. Bd3 {[%emt 0:00:23]} Qe7 {[%emt 0:02:29]} 10. c4 {[%emt 0:02:00]} c6 {[%emt 0:07:13]} 11. c5 {[%emt 0:00:49]} Bc7 {[%emt 0:00:11]} 12. Qb3 {[%emt 0:04:38]} b6 {[%emt 0:03:55]} 13. Rc1 {[%emt 0:05:44]} b5 {[%emt 0:03:44]} 14. a4 {[%emt 0:02:04]} a6 {[%emt 0:01:59]} 15. Nf3 {[%emt 0:04:12]} Rc8 {[%emt 0:04:57]} 16. Ne5 {[%emt 0:02:38]} Ba5+ {[%emt 0:02:22]} 17. Ke2 {[%emt 0:01:35]} Nbd7 {[%emt 0:00:59]} 18. Nxd7 {[%emt 0:00:40]} Qxd7 {[%emt 0:00:13]} 19. Bd6 {[%emt 0:00:14]} Bc7 {[%emt 0:00:46]} 20. Bg3 {[%emt 0:00:47]} Qe7 {[%emt 0:01:24]} 21. Bxc7 {[%emt 0:02:46]} Qxc7 {[%emt 0:02:06]} 22. f4 {[%emt 0:04:06]} Rcb8 {[%emt 0:03:39]} 23. Rc2 {[%emt 0:03:15]} Qe7 {[%emt 0:03:37]} 24. h3 {[%emt 0:03:04]} Nh5 {[%emt 0:01:24]} 25. Kf3 {[%emt 0:02:46]} Qh4 {[%emt 0:01:41]} 26. Rf2 {[%emt 0:01:46]} Ng3 {[%emt 0:02:53]} 27. Rg1 {[%emt 0:06:59]} Ne4 {[%emt 0:03:58]} 28. Bxe4 {[%emt 0:00:39]} dxe4+ {[%emt 0:00:15]} 29. Ke2 {[%emt 0:00:40]} bxa4 {[%emt 0:00:19]} 30. Qa2 {[%emt 0:01:25]} Rb5 {[%emt 0:05:25]} 31. Kf1 {[%emt 0:05:43]} Rab8 {[%emt 0:02:03]} 32. Rh1 {[%emt 0:04:43]} Rb3 {[%emt 0:01:44]} 33. Re2 {[%emt 0:02:44]} a3 {[%emt 0:00:44]} 34. g3 {[%emt 0:01:19]} Qxg3 {[%emt 0:00:41]} 35. Rhh2 {[%emt 0:00:31]} axb2 {[%emt 0:01:25]} 36. Rxb2 {[%emt 0:00:21]} Rxb2 {[%emt 0:00:48]} 37. Rxb2 {[%emt 0:00:08]} Qxh3+ {[%emt 0:00:10]} 38. Kg1 {[%emt 0:00:34]} Qxe3+ {[%emt 0:00:24]} 39. Kg2 {[%emt 0:00:10]} Rxb2+ {[%emt 0:01:47]} 40. Qxb2 {[%emt 0:00:06]} Qxf4 {[%emt 0:00:25]} 41. Kg1 {[%emt 0:15:19]} e3 {[%emt 0:15:31]} 42. Qb8+ {[%emt 0:00:36]} Qxb8 {[%emt 0:00:08]} 0-1

[Event "GER-ch Youth U10 2020"]
[Site "Willingen"]
[Date "2020.10.30"]
[Round "5.21"]
[White "Klasen, Ennio Rodriguez"]
[Black "Conrad, Marius"]
[Result "1-0"]
[ECO "B21"]
[WhiteElo "1297"]
[BlackElo "1645"]
[Annotator "NA RC"]
[PlyCount "149"]
[EventDate "2020.10.27"]
[EventType "swiss"]
[EventRounds "7"]
[EventCountry "GER"]
[SourceTitle "playchess.com"]
[Source "ChessBase"]
[SourceQuality "1"]
[TimeControl "40/4500+30:900+30"]

1. e4 {[%emt 0:00:00]} c5 {[%emt 0:00:00]} 2. f4 {[%emt 0:00:27]} d5 {[%emt 0:00:15]} 3. e5 {[%emt 0:01:27]} Nc6 {[%emt 0:01:54]} 4. Nf3 {[%emt 0:01:42]} e6 {[%emt 0:02:22]} 5. d3 {[%emt 0:06:03]} Nge7 {[%emt 0:01:34]} 6. c3 {[%emt 0:02:44]} Nf5 {[%emt 0:02:37]} 7. d4 {[%emt 0:02:56]} cxd4 {[%emt 0:06:34]} 8. Bd3 {[%emt 0:12:43]} Ne3 {[%emt 0:08:06]} 9. Qe2 {[%emt 0:04:11]} Nc4 {[%emt 0:27:07]} 10. Bxc4 {[%emt 0:11:49]} dxc4 {[%emt 0:01:53]} 11. Qxc4 {[%emt 0:00:59]} dxc3 {[%emt 0:00:21]} 12. Nxc3 {[%emt 0:01:24]} Be7 {[%emt 0:01:55]} 13. Be3 {[%emt 0:01:43]} O-O {[%emt 0:02:30]} 14. O-O {[%emt 0:01:17]} Qc7 {[%emt 0:05:40]} 15. Rfd1 {[%emt 0:04:39]} b6 {[%emt 0:02:51]} 16. Rac1 {[%emt 0:03:32]} Bb7 {[%emt 0:01:44]} 17. Nb5 {[%emt 0:02:53]} Qc8 {[%emt 0:01:40]} 18. Nd6 {[%emt 0:01:55]} Bxd6 {[%emt 0:00:55]} 19. Rxd6 {[%emt 0:01:00]} Na5 {[%emt 0:02:08]} 20. Qb5 {[%emt 0:02:36]} Qb8 {[%emt 0:02:49]} 21. Nd4 {[%emt 0:01:18]} Rc8 {[%emt 0:03:39]} 22. Qf1 {[%emt 0:05:41]} Rxc1 {[%emt 0:00:52]} 23. Qxc1 {[%emt 0:00:08]} Bd5 {[%emt 0:00:44]} 24. b3 {[%emt 0:01:04]} h6 {[%emt 0:00:35]} 25. Rd7 {[%emt 0:01:29]} Qe8 {[%emt 0:00:49]} 26. Qc7 {[%emt 0:00:45]} Rc8 {[%emt 0:00:36]} 27. Qxa7 {[%emt 0:01:04]} Nc6 {[%emt 0:01:31]} 28. Nxc6 {[%emt 0:00:25]} Bxc6 {[%emt 0:00:07]} 29. Rc7 {[%emt 0:01:05]} Rxc7 {[%emt 0:01:36]} 30. Qxc7 {[%emt 0:00:08]} Bd5 {[%emt 0:00:08]} 31. Qxb6 {[%emt 0:00:32]} Qc8 {[%emt 0:00:10]} 32. Bc5 {[%emt 0:00:25]} Qa8 {[%emt 0:00:19]} 33. Qa7 {[%emt 0:01:30]} Qd8 {[%emt 0:00:38]} 34. Be7 {[%emt 0:01:05]} Qc8 {[%emt 0:00:26]} 35. Qe3 {[%emt 0:01:19]} Qc2 {[%emt 0:00:30]} 36. Qf2 {[%emt 0:00:50]} Qd1+ {[%emt 0:00:37]} 37. Qf1 {[%emt 0:00:18]} Qd4+ {[%emt 0:00:18]} 38. Kh1 {[%emt 0:00:13]} Qb2 {[%emt 0:00:17]} 39. b4 {[%emt 0:00:40]} Qxa2 {[%emt 0:00:08]} 40. Bc5 {[%emt 0:00:31]} Qb2 {[%emt 0:00:31]} 41. h3 {[%emt 0:15:28]} Bc6 {[%emt 0:15:20]} 42. Kh2 {[%emt 0:00:16]} Kh7 {[%emt 0:01:42]} 43. Qf2 {[%emt 0:00:27]} Qb3 {[%emt 0:00:36]} 44. Qg3 {[%emt 0:00:39]} Qb1 {[%emt 0:00:55]} 45. Qf2 {[%emt 0:01:21]} Qe4 {[%emt 0:00:56]} 46. Qf1 {[%emt 0:01:15]} Qd5 {[%emt 0:01:00]} 47. Qf3 {[%emt 0:00:41]} Qd7 {[%emt 0:00:38]} 48. Qe2 {[%emt 0:00:16]} Qd5 {[%emt 0:00:29]} 49. Qc2+ {[%emt 0:02:10]} Qe4 {[%emt 0:01:19]} 50. Qxe4+ {[%emt 0:00:00]} Bxe4 {[%emt 0:00:06]} 51. b5 {[%emt 0:00:00]} Kg6 {[%emt 0:00:16]} 52. g4 {[%emt 0:00:00]} h5 {[%emt 0:00:40]} 53. b6 {[%emt 0:00:00]} hxg4 {[%emt 0:00:27]} 54. hxg4 {[%emt 0:00:00]} Kh6 {[%emt 0:00:19]} 55. Kg3 {[%emt 0:00:11]} g5 {[%emt 0:00:25]} 56. fxg5+ {[%emt 0:00:57]} Kxg5 {[%emt 0:00:07]} 57. Be7+ {[%emt 0:00:42]} Kg6 {[%emt 0:00:17]} 58. Bf6 {[%emt 0:00:56]} Bb7 {[%emt 0:00:21]} 59. Kf4 {[%emt 0:00:42]} Bd5 {[%emt 0:00:17]} 60. Ke3 {[%emt 0:00:11]} Kh7 {[%emt 0:00:42]} 61. Kd4 {[%emt 0:00:35]} Kg8 {[%emt 0:00:16]} 62. Kc5 {[%emt 0:00:16]} Kf8 {[%emt 0:00:13]} 63. Kd6 {[%emt 0:00:09]} Ke8 {[%emt 0:00:20]} 64. Kc7 {[%emt 0:00:10]} Be4 {[%emt 0:00:32]} 65. b7 {[%emt 0:00:15]} Bxb7 {[%emt 0:00:06]} 66. Kxb7 {[%emt 0:00:05]} Kf8 {[%emt 0:00:05]} 67. Kc6 {[%emt 0:00:16]} Kg8 {[%emt 0:00:11]} 68. Kd7 {[%emt 0:00:12]} Kh7 {[%emt 0:00:25]} 69. Ke7 {[%emt 0:00:12]} Kg6 {[%emt 0:00:21]} 70. g5 {[%emt 0:00:21]} Kh7 {[%emt 0:00:30]} 71. Kf8 {[%emt 0:00:29]} Kg6 {[%emt 0:00:25]} 72. Kg8 {[%emt 0:00:09]} Kh5 {[%emt 0:00:15]} 73. Kxf7 {[%emt 0:00:11]} Kg4 {[%emt 0:00:25]} 74. g6 {[%emt 0:00:08]} Kh5 {[%emt 0:00:11]} 75. g7 {[%emt 0:00:19]} 1-0

[Event "GER-ch Youth U10 2020"]
[Site "Willingen"]
[Date "2020.10.30"]
[Round "5.22"]
[White "Ehrath, Hendrik"]
[Black "Mohammadzadeh, Daris"]
[Result "0-1"]
[ECO "B23"]
[WhiteElo "1193"]
[BlackElo "1311"]
[Annotator "NA RC"]
[PlyCount "54"]
[EventDate "2020.10.27"]
[EventType "swiss"]
[EventRounds "7"]
[EventCountry "GER"]
[SourceTitle "playchess.com"]
[Source "ChessBase"]
[SourceQuality "1"]
[TimeControl "40/4500+30:900+30"]

1. e4 {[%emt 0:00:00]} c5 {[%emt 0:00:00]} 2. Nc3 {[%emt 0:00:00]} g6 {[%emt 0:00:00]} 3. f4 {[%emt 0:00:02]} Bg7 {[%emt 0:00:23]} 4. Nf3 {[%emt 0:00:13]} Nc6 {[%emt 0:00:53]} 5. Bc4 {[%emt 0:00:18]} e6 {[%emt 0:01:06]} 6. O-O {[%emt 0:00:31]} Nge7 {[%emt 0:00:56]} 7. d3 {[%emt 0:00:18]} O-O {[%emt 0:01:23]} 8. Qe1 {[%emt 0:00:19]} d5 {[%emt 0:01:16]} 9. exd5 {[%emt 0:00:30]} exd5 {[%emt 0:01:07]} 10. Bb3 {[%emt 0:00:26]} Re8 {[%emt 0:04:26]} 11. Qh4 {[%emt 0:01:37]} Nf5 {[%emt 0:01:46]} 12. Qf2 {[%emt 0:00:32]} Be6 {[%emt 0:06:12]} 13. Rd1 {[%emt 0:01:40]} Ncd4 {[%emt 0:01:13]} 14. Nxd4 {[%emt 0:01:57]} Bxd4 {[%emt 0:00:13]} 15. Ba4 {[%emt 0:01:38]} Bxf2+ {[%emt 0:02:22]} 16. Kxf2 {[%emt 0:00:10]} Re7 {[%emt 0:00:24]} 17. g4 {[%emt 0:01:16]} Nd4 {[%emt 0:00:13]} 18. f5 {[%emt 0:00:29]} Bd7 {[%emt 0:04:46]} 19. Bg5 {[%emt 0:00:45]} Bxa4 {[%emt 0:00:38]} 20. Bxe7 {[%emt 0:00:31]} Qxe7 {[%emt 0:00:10]} 21. Nxa4 {[%emt 0:00:18]} Qe2+ {[%emt 0:00:14]} 22. Kg3 {[%emt 0:00:31]} Qf3+ {[%emt 0:00:24]} 23. Kh4 {[%emt 0:00:19]} h6 {[%emt 0:00:21]} 24. fxg6 {[%emt 0:00:45]} fxg6 {[%emt 0:00:20]} 25. Rd2 {[%emt 0:00:24]} Kh7 {[%emt 0:00:57]} 26. Rg1 {[%emt 0:00:24]} g5+ {[%emt 0:00:12]} 27. Kh5 {[%emt 0:00:24]} Qh3# 0-1

[Event "GER-ch Youth U10 2020"]
[Site "Willingen"]
[Date "2020.10.30"]
[Round "5.23"]
[White "Bock, Leonas"]
[Black "Kamleiter, Noah"]
[Result "1-0"]
[ECO "A03"]
[WhiteElo "1301"]
[BlackElo "1573"]
[Annotator "NA RC"]
[PlyCount "43"]
[EventDate "2020.10.27"]
[EventType "swiss"]
[EventRounds "7"]
[EventCountry "GER"]
[SourceTitle "playchess.com"]
[Source "ChessBase"]
[SourceQuality "1"]
[TimeControl "40/4500+30:900+30"]

1. f4 {[%emt 0:00:00]} d5 {[%emt 0:00:00]} 2. b3 {[%emt 0:00:00]} c5 {[%emt 0:00:52]} 3. Bb2 {[%emt 0:00:54]} Nc6 {[%emt 0:00:29]} 4. e3 {[%emt 0:01:48]} Nf6 {[%emt 0:00:36]} 5. Nf3 {[%emt 0:00:18]} a6 {[%emt 0:02:04]} 6. Be2 {[%emt 0:03:18]} e6 {[%emt 0:03:14]} 7. d3 {[%emt 0:03:06]} Be7 {[%emt 0:02:19]} 8. Nbd2 {[%emt 0:01:17]} O-O {[%emt 0:00:41]} 9. Ne5 {[%emt 0:02:54]} Qc7 {[%emt 0:04:08]} 10. Ndf3 {[%emt 0:02:01]} Nd7 {[%emt 0:03:12]} 11. O-O {[%emt 0:01:27]} f6 {[%emt 0:04:08]} 12. Nxc6 {[%emt 0:03:14]} Qxc6 {[%emt 0:01:36]} 13. Qe1 {[%emt 0:07:03]} Bd6 {[%emt 0:03:43]} 14. Qh4 {[%emt 0:05:10]} e5 {[%emt 0:03:51]} 15. fxe5 {[%emt 0:03:09]} Nxe5 {[%emt 0:01:25]} 16. Nxe5 {[%emt 0:02:23]} Bxe5 {[%emt 0:01:13]} 17. Bxe5 {[%emt 0:00:09]} fxe5 {[%emt 0:00:30]} 18. Rxf8+ {[%emt 0:00:13]} Kxf8 {[%emt 0:00:04]} 19. Rf1+ {[%emt 0:00:06]} Ke8 {[%emt 0:00:30]} 20. Qh5+ {[%emt 0:01:03]} Qg6 {[%emt 0:00:13]} 21. Qxe5+ {[%emt 0:00:11]} Be6 {[%emt 0:00:10]} 22. Bh5 {[%emt 0:00:17]} 1-0